[Event "Titled Tuesday Blitz May 9 Late 2023"]
[White "Ismagilov, Damir"]
[Black "Moore, Nicholas"]
[WhiteFideId "34199982"]
[BlackFideId "4303709"]
[WhiteElo "2143"]
[BlackElo "2516"]
[Result "0-1"]
[Round "11"]
[TimeControl "180+2"]
[Date "2023.05.09"]
[WhiteClock "0:00:15"]
[BlackClock "0:00:26"]

1. f4 {[%clk 0:02:53]}  d5 {[%clk 0:02:52]} 2. Nf3 {[%clk 0:02:53]}  Bf5 {[%clk 0:02:47]} 3. e3 {[%clk 0:02:53]}  e6 {[%clk 0:02:46]} 4. b3 {[%clk 0:02:53]}  Nf6 {[%clk 0:02:46]} 5. Bb2 {[%clk 0:02:54]}  Be7 {[%clk 0:02:47]} 6. Be2 {[%clk 0:02:54]}  h6 {[%clk 0:02:46]} 7. O-O {[%clk 0:02:54]}  Nbd7 {[%clk 0:02:47]} 8. d4 {[%clk 0:02:54]}  Ne4 {[%clk 0:02:46]} 9. Nbd2 {[%clk 0:02:54]}  Ndf6 {[%clk 0:02:44]} 10. c4 {[%clk 0:02:48]}  c6 {[%clk 0:02:44]} 11. Ne5 {[%clk 0:02:43]}  Nxd2 {[%clk 0:02:42]} 12. Qxd2 {[%clk 0:02:44]}  Ne4 {[%clk 0:02:42]} 13. Qe1 {[%clk 0:02:44]}  O-O {[%clk 0:02:39]} 14. Bf3 {[%clk 0:02:30]}  Bd6 {[%clk 0:02:37]} 15. Qe2 {[%clk 0:02:24]}  Qe7 {[%clk 0:02:29]} 16. c5 {[%clk 0:02:20]}  Bxe5 {[%clk 0:02:28]} 17. fxe5 {[%clk 0:02:20]}  Ng5 {[%clk 0:02:19]} 18. b4 {[%clk 0:02:14]}  a6 {[%clk 0:02:18]} 19. a4 {[%clk 0:02:13]}  Be4 {[%clk 0:02:05]} 20. h4 {[%clk 0:02:04]}  Nxf3+ {[%clk 0:01:58]} 21. gxf3 {[%clk 0:02:04]}  Bg6 {[%clk 0:01:54]} 22. Qh2 {[%clk 0:02:00]}  f6 {[%clk 0:01:50]} 23. f4 {[%clk 0:01:37]}  Be4 {[%clk 0:01:47]} 24. Qg3 {[%clk 0:01:34]}  Kh7 {[%clk 0:01:43]} 25. Kh2 {[%clk 0:01:33]}  fxe5 {[%clk 0:01:40]} 26. fxe5 {[%clk 0:01:33]}  Rxf1 {[%clk 0:01:33]} 27. Rxf1 {[%clk 0:01:34]}  Rf8 {[%clk 0:01:32]} 28. Rf4 {[%clk 0:01:27]}  Rf5 {[%clk 0:01:28]} 29. Bc3 {[%clk 0:01:16]}  Rh5 {[%clk 0:01:20]} 30. Be1 {[%clk 0:01:05]}  Rf5 {[%clk 0:00:54]} 31. Rxf5 {[%clk 0:00:56]}  Bxf5 {[%clk 0:00:53]} 32. Qf4 {[%clk 0:00:45]}  Qf7 {[%clk 0:00:51]} 33. Bg3 {[%clk 0:00:42]}  Qg6 {[%clk 0:00:50]} 34. Qf1 {[%clk 0:00:36]}  Qg4 {[%clk 0:00:46]} 35. Qf4 {[%clk 0:00:28]}  Qh3+ {[%clk 0:00:44]} 36. Kg1 {[%clk 0:00:29]}  Be4 {[%clk 0:00:44]} 37. Kf2 {[%clk 0:00:25]}  Qg2+ {[%clk 0:00:41]} 38. Ke1 {[%clk 0:00:25]}  Qg1+ {[%clk 0:00:30]} 39. Kd2 {[%clk 0:00:23]}  Qa1 {[%clk 0:00:27]} 40. Qf7 {[%clk 0:00:18]}  Qb2+ {[%clk 0:00:26]} 41. Ke1 {[%clk 0:00:18]}  Qxb4+ {[%clk 0:00:26]} 42. Kf2 {[%clk 0:00:18]}  Qd2+ {[%clk 0:00:26]} 43. Kg1 {[%clk 0:00:15]}  Qg2# {[%clk 0:00:26]} 0-1


[Site "https://www.chess.com"]

[Event "Titled Tuesday Blitz May 9 Late 2023"]
[White "Qiao, Cindy"]
[Black "Komov, Roman"]
[WhiteFideId "2620243"]
[BlackFideId "24175714"]
[WhiteElo "1777"]
[BlackElo "2189"]
[Result "0-1"]
[Round "11"]
[TimeControl "180+2"]
[Date "2023.05.09"]
[WhiteClock "0:00:12"]
[BlackClock "0:00:47"]

1. d4 {[%clk 0:03:00]}  Nf6 {[%clk 0:02:59]} 2. Bf4 {[%clk 0:03:01]}  c5 {[%clk 0:02:58]} 3. e3 {[%clk 0:03:01]}  Qb6 {[%clk 0:02:58]} 4. Nc3 {[%clk 0:02:59]}  d6 {[%clk 0:02:57]} 5. Rb1 {[%clk 0:02:56]}  g6 {[%clk 0:02:57]} 6. Nf3 {[%clk 0:02:56]}  Bg7 {[%clk 0:02:57]} 7. Be2 {[%clk 0:02:56]}  O-O {[%clk 0:02:56]} 8. O-O {[%clk 0:02:55]}  a6 {[%clk 0:02:51]} 9. Re1 {[%clk 0:02:50]}  Qc7 {[%clk 0:02:38]} 10. h3 {[%clk 0:02:31]}  b5 {[%clk 0:02:35]} 11. a3 {[%clk 0:02:16]}  Bb7 {[%clk 0:02:34]} 12. Na2 {[%clk 0:01:54]}  Nbd7 {[%clk 0:02:30]} 13. Rc1 {[%clk 0:01:46]}  Nb6 {[%clk 0:02:22]} 14. dxc5 {[%clk 0:01:23]}  Qxc5 {[%clk 0:02:21]} 15. Nb4 {[%clk 0:01:23]}  Nfd5 {[%clk 0:02:12]} 16. Nd3 {[%clk 0:01:22]}  Qc7 {[%clk 0:02:11]} 17. Bg3 {[%clk 0:01:22]}  Nc4 {[%clk 0:02:09]} 18. Rb1 {[%clk 0:01:17]}  Rac8 {[%clk 0:02:00]} 19. c3 {[%clk 0:01:12]}  Rfd8 {[%clk 0:01:49]} 20. Nb4 {[%clk 0:01:11]}  Ndb6 {[%clk 0:01:40]} 21. Nd2 {[%clk 0:01:08]}  a5 {[%clk 0:01:37]} 22. Nd3 {[%clk 0:01:02]}  Nxd2 {[%clk 0:01:34]} 23. Qxd2 {[%clk 0:01:02]}  Nc4 {[%clk 0:01:35]} 24. Qd1 {[%clk 0:01:02]}  e5 {[%clk 0:01:29]} 25. a4 {[%clk 0:00:47]}  Qc6 {[%clk 0:01:28]} 26. Bf1 {[%clk 0:00:43]}  bxa4 {[%clk 0:01:28]} 27. Ra1 {[%clk 0:00:39]}  a3 {[%clk 0:01:27]} 28. bxa3 {[%clk 0:00:38]}  e4 {[%clk 0:01:27]} 29. Nf4 {[%clk 0:00:32]}  Bxc3 {[%clk 0:01:26]} 30. Rc1 {[%clk 0:00:28]}  Nb2 {[%clk 0:01:22]} 31. Qb3 {[%clk 0:00:23]}  a4 {[%clk 0:01:10]} 32. Qa2 {[%clk 0:00:14]}  Qb6 {[%clk 0:01:07]} 33. Red1 {[%clk 0:00:14]}  Nxd1 {[%clk 0:01:07]} 34. Rxd1 {[%clk 0:00:14]}  Qb3 {[%clk 0:01:06]} 35. Qe2 {[%clk 0:00:14]}  Ba6 {[%clk 0:01:02]} 36. Qg4 {[%clk 0:00:14]}  Bxf1 {[%clk 0:01:01]} 37. Rxf1 {[%clk 0:00:14]}  Qxa3 {[%clk 0:01:00]} 38. h4 {[%clk 0:00:15]}  Be5 {[%clk 0:00:59]} 39. Nd5 {[%clk 0:00:15]}  Qc5 {[%clk 0:00:46]} 40. Ne7+ {[%clk 0:00:14]}  Kf8 {[%clk 0:00:47]} 41. Nxc8 {[%clk 0:00:15]}  Qxc8 {[%clk 0:00:47]} 42. Bxe5 {[%clk 0:00:12]}  Qxg4 {[%clk 0:00:47]} 0-1


[Site "https://www.chess.com"]

[Event "Titled Tuesday Blitz May 9 Late 2023"]
[White "Gonzalez, Francisco Silva"]
[Black "Aydincelebi, Kagan"]
[WhiteFideId "1512285"]
[BlackFideId "6361102"]
[WhiteElo "2074"]
[BlackElo "2180"]
[Result "0-1"]
[Round "11"]
[TimeControl "180+2"]
[Date "2023.05.09"]
[WhiteClock "0:01:37"]
[BlackClock "0:01:21"]

1. d4 {[%clk 0:03:00]}  Nf6 {[%clk 0:02:59]} 2. c4 {[%clk 0:03:00]}  c5 {[%clk 0:03:00]} 3. d5 {[%clk 0:03:00]}  e6 {[%clk 0:03:01]} 4. Nc3 {[%clk 0:03:00]}  exd5 {[%clk 0:03:01]} 5. cxd5 {[%clk 0:03:01]}  d6 {[%clk 0:03:02]} 6. Nf3 {[%clk 0:03:00]}  g6 {[%clk 0:03:03]} 7. Bf4 {[%clk 0:03:00]}  a6 {[%clk 0:03:03]} 8. a4 {[%clk 0:03:00]}  Bg7 {[%clk 0:03:03]} 9. h3 {[%clk 0:03:00]}  O-O {[%clk 0:03:04]} 10. e3 {[%clk 0:03:01]}  Ne8 {[%clk 0:03:04]} 11. Be2 {[%clk 0:03:00]}  Nd7 {[%clk 0:03:04]} 12. O-O {[%clk 0:03:01]}  Rb8 {[%clk 0:03:04]} 13. a5 {[%clk 0:03:01]}  Qe7 {[%clk 0:03:00]} 14. Re1 {[%clk 0:03:00]}  b5 {[%clk 0:02:58]} 15. axb6 {[%clk 0:02:59]}  Rxb6 {[%clk 0:02:51]} 16. Qc2 {[%clk 0:02:59]}  Nc7 {[%clk 0:02:47]} 17. e4 {[%clk 0:02:58]}  Ne5 {[%clk 0:02:44]} 18. Bxe5 {[%clk 0:02:54]}  Bxe5 {[%clk 0:02:45]} 19. Nxe5 {[%clk 0:02:53]}  Qxe5 {[%clk 0:02:46]} 20. Qd2 {[%clk 0:02:51]}  Bd7 {[%clk 0:02:45]} 21. Red1 {[%clk 0:02:39]}  Rfb8 {[%clk 0:02:41]} 22. f4 {[%clk 0:02:39]}  Qf6 {[%clk 0:02:35]} 23. Ra2 {[%clk 0:02:38]}  Nb5 {[%clk 0:02:34]} 24. e5 {[%clk 0:02:28]}  dxe5 {[%clk 0:02:30]} 25. Ne4 {[%clk 0:02:25]}  Qxf4 {[%clk 0:02:29]} 26. Nxc5 {[%clk 0:02:25]}  Qxd2 {[%clk 0:02:16]} 27. Rxd2 {[%clk 0:02:25]}  Bc8 {[%clk 0:02:17]} 28. Bxb5 {[%clk 0:02:19]}  Rxb5 {[%clk 0:02:15]} 29. Nxa6 {[%clk 0:02:18]}  Bxa6 {[%clk 0:02:03]} 30. Rxa6 {[%clk 0:02:15]}  Rxb2 {[%clk 0:02:03]} 31. Rd3 {[%clk 0:02:14]}  R8b3 {[%clk 0:01:57]} 32. Rxb3 {[%clk 0:02:10]}  Rxb3 {[%clk 0:01:57]} 33. Ra8+ {[%clk 0:02:08]}  Kg7 {[%clk 0:01:56]} 34. Re8 {[%clk 0:02:05]}  Kf6 {[%clk 0:01:52]} 35. Kf2 {[%clk 0:02:01]}  Rd3 {[%clk 0:01:51]} 36. Rd8 {[%clk 0:02:00]}  Ke7 {[%clk 0:01:49]} 37. Ke2 {[%clk 0:01:59]}  Kxd8 {[%clk 0:01:47]} 38. Kxd3 {[%clk 0:01:59]}  Kd7 {[%clk 0:01:40]} 39. Ke4 {[%clk 0:01:54]}  Kd6 {[%clk 0:01:40]} 40. g4 {[%clk 0:01:53]}  h6 {[%clk 0:01:39]} 41. h4 {[%clk 0:01:47]}  f5+ {[%clk 0:01:21]} 42. gxf5 {[%clk 0:01:46]}  gxf5+ {[%clk 0:01:22]} 43. Kxf5 {[%clk 0:01:45]}  Kxd5 {[%clk 0:01:23]} 44. Kg6 {[%clk 0:01:46]}  e4 {[%clk 0:01:24]} 45. Kxh6 {[%clk 0:01:47]}  e3 {[%clk 0:01:24]} 46. h5 {[%clk 0:01:47]}  e2 {[%clk 0:01:25]} 47. Kh7 {[%clk 0:01:47]}  e1=Q {[%clk 0:01:26]} 48. h6 {[%clk 0:01:48]}  Ke6 {[%clk 0:01:24]} 49. Kg7 {[%clk 0:01:46]}  Qg3+ {[%clk 0:01:24]} 50. Kh8 {[%clk 0:01:37]}  Kf7 {[%clk 0:01:23]} 51. h7 {[%clk 0:01:37]}  Qb8# {[%clk 0:01:21]} 0-1


[Site "https://www.chess.com"]

[Event "Titled Tuesday Blitz May 9 Late 2023"]
[White "Seletsky, Grigory"]
[Black "Klukin, Kirill"]
[WhiteFideId "14112191"]
[BlackFideId "24199273"]
[WhiteElo "2491"]
[BlackElo "2344"]
[Result "0-1"]
[Round "11"]
[TimeControl "180+2"]
[Date "2023.05.09"]
[WhiteClock "0:00:00"]
[BlackClock "0:00:14"]

1. d4 {[%clk 0:02:42]}  d5 {[%clk 0:02:58]} 2. Nc3 {[%clk 0:02:42]}  Nf6 {[%clk 0:02:58]} 3. Bf4 {[%clk 0:02:42]}  a6 {[%clk 0:02:58]} 4. e3 {[%clk 0:02:42]}  e6 {[%clk 0:02:58]} 5. a3 {[%clk 0:02:41]}  c5 {[%clk 0:02:59]} 6. Nf3 {[%clk 0:02:41]}  Nc6 {[%clk 0:02:59]} 7. Ne2 {[%clk 0:02:38]}  b5 {[%clk 0:02:59]} 8. c3 {[%clk 0:02:36]}  Bb7 {[%clk 0:03:00]} 9. h3 {[%clk 0:02:36]}  Qb6 {[%clk 0:03:00]} 10. Ne5 {[%clk 0:02:35]}  a5 {[%clk 0:02:59]} 11. Nxc6 {[%clk 0:02:35]}  Bxc6 {[%clk 0:02:59]} 12. Nc1 {[%clk 0:02:20]}  c4 {[%clk 0:02:55]} 13. Be2 {[%clk 0:02:12]}  Be7 {[%clk 0:02:54]} 14. O-O {[%clk 0:02:11]}  O-O {[%clk 0:02:55]} 15. Bf3 {[%clk 0:02:02]}  b4 {[%clk 0:02:54]} 16. axb4 {[%clk 0:02:00]}  axb4 {[%clk 0:02:46]} 17. Ne2 {[%clk 0:01:59]}  Rxa1 {[%clk 0:02:45]} 18. Qxa1 {[%clk 0:01:58]}  Ra8 {[%clk 0:02:46]} 19. Qb1 {[%clk 0:01:55]}  b3 {[%clk 0:02:42]} 20. g4 {[%clk 0:01:52]}  h6 {[%clk 0:02:42]} 21. Kg2 {[%clk 0:01:52]}  Qa5 {[%clk 0:02:35]} 22. Be5 {[%clk 0:01:49]}  Nd7 {[%clk 0:02:35]} 23. Bh2 {[%clk 0:01:47]}  Qa2 {[%clk 0:02:35]} 24. Qc1 {[%clk 0:01:31]}  Nb6 {[%clk 0:02:33]} 25. Rd1 {[%clk 0:01:30]}  Na4 {[%clk 0:02:29]} 26. Rd2 {[%clk 0:01:30]}  Ba3 {[%clk 0:02:29]} 27. bxa3 {[%clk 0:01:29]}  b2 {[%clk 0:02:29]} 28. Qc2 {[%clk 0:00:54]}  Ra7 {[%clk 0:01:46]} 29. Bd6 {[%clk 0:00:51]}  Qb3 {[%clk 0:01:17]} 30. Qb1 {[%clk 0:00:41]}  f6 {[%clk 0:01:00]} 31. Bb4 {[%clk 0:00:39]}  Be8 {[%clk 0:01:00]} 32. Nf4 {[%clk 0:00:20]}  Rb7 {[%clk 0:00:42]} 33. Bd1 {[%clk 0:00:19]}  Nxc3 {[%clk 0:00:42]} 34. Bxc3 {[%clk 0:00:18]}  Qxc3 {[%clk 0:00:42]} 35. Re2 {[%clk 0:00:07]}  Qxa3 {[%clk 0:00:38]} 36. Nxe6 {[%clk 0:00:05]}  c3 {[%clk 0:00:24]} 37. Bc2 {[%clk 0:00:03]}  Ba4 {[%clk 0:00:17]} 38. Nc5 {[%clk 0:00:03]}  Bxc2 {[%clk 0:00:13]} 39. Rxc2 {[%clk 0:00:00]}  Qa1 {[%clk 0:00:14]} 0-1


[Site "https://www.chess.com"]

[Event "Titled Tuesday Blitz May 9 Late 2023"]
[White "Przybylski, Wojciech"]
[Black "Gorshtein, Ido"]
[WhiteFideId "1117599"]
[BlackFideId "2815532"]
[WhiteElo "2222"]
[BlackElo "2415"]
[Result "0-1"]
[Round "11"]
[TimeControl "180+2"]
[Date "2023.05.09"]
[WhiteClock "0:00:03"]
[BlackClock "0:00:42"]

1. d4 {[%clk 0:03:00]}  Nf6 {[%clk 0:02:58]} 2. g3 {[%clk 0:02:56]}  d5 {[%clk 0:02:57]} 3. Bg2 {[%clk 0:02:56]}  c6 {[%clk 0:02:54]} 4. a4 {[%clk 0:02:55]}  Bf5 {[%clk 0:02:53]} 5. a5 {[%clk 0:02:55]}  e6 {[%clk 0:02:52]} 6. Nf3 {[%clk 0:02:54]}  Nbd7 {[%clk 0:02:48]} 7. a6 {[%clk 0:02:54]}  b6 {[%clk 0:02:47]} 8. O-O {[%clk 0:02:53]}  h6 {[%clk 0:02:46]} 9. Nc3 {[%clk 0:02:51]}  Bb4 {[%clk 0:02:42]} 10. Bd2 {[%clk 0:02:49]}  O-O {[%clk 0:02:36]} 11. Na2 {[%clk 0:02:44]}  Be7 {[%clk 0:02:34]} 12. Nc1 {[%clk 0:02:43]}  c5 {[%clk 0:02:34]} 13. e3 {[%clk 0:02:42]}  c4 {[%clk 0:02:32]} 14. Na2 {[%clk 0:02:41]}  Nb8 {[%clk 0:02:29]} 15. Nc3 {[%clk 0:02:37]}  Qe8 {[%clk 0:02:20]} 16. Ne5 {[%clk 0:02:35]}  b5 {[%clk 0:02:17]} 17. Ra5 {[%clk 0:02:25]}  b4 {[%clk 0:02:16]} 18. Nb5 {[%clk 0:02:23]}  Qd8 {[%clk 0:02:16]} 19. Ra1 {[%clk 0:02:17]}  Qb6 {[%clk 0:02:15]} 20. Na3 {[%clk 0:01:42]}  bxa3 {[%clk 0:02:13]} 21. Nxc4 {[%clk 0:01:41]}  dxc4 {[%clk 0:02:03]} 22. Bxa8 {[%clk 0:01:40]}  axb2 {[%clk 0:02:03]} 23. Rb1 {[%clk 0:01:38]}  Nxa6 {[%clk 0:02:01]} 24. Bg2 {[%clk 0:01:26]}  Ne4 {[%clk 0:01:55]} 25. Bxe4 {[%clk 0:01:24]}  Bxe4 {[%clk 0:01:56]} 26. Bc3 {[%clk 0:01:22]}  Ba3 {[%clk 0:01:57]} 27. f3 {[%clk 0:01:21]}  Bh7 {[%clk 0:01:54]} 28. e4 {[%clk 0:01:20]}  Nc7 {[%clk 0:01:53]} 29. Qe2 {[%clk 0:01:15]}  e5 {[%clk 0:01:50]} 30. Qxc4 {[%clk 0:01:13]}  Nb5 {[%clk 0:01:49]} 31. Bxb2 {[%clk 0:01:09]}  Bxb2 {[%clk 0:01:34]} 32. Rxb2 {[%clk 0:01:05]}  Qxd4+ {[%clk 0:01:34]} 33. Qxd4 {[%clk 0:01:04]}  Nxd4 {[%clk 0:01:35]} 34. c3 {[%clk 0:00:58]}  Ne6 {[%clk 0:01:33]} 35. Ra1 {[%clk 0:00:54]}  f5 {[%clk 0:01:31]} 36. Ra6 {[%clk 0:00:47]}  Ng5 {[%clk 0:01:28]} 37. Rxa7 {[%clk 0:00:28]}  fxe4 {[%clk 0:01:14]} 38. f4 {[%clk 0:00:20]}  exf4 {[%clk 0:01:12]} 39. Rbb7 {[%clk 0:00:20]}  f3 {[%clk 0:01:10]} 40. Rxg7+ {[%clk 0:00:19]}  Kh8 {[%clk 0:01:09]} 41. Kf2 {[%clk 0:00:18]}  e3+ {[%clk 0:01:07]} 42. Kxe3 {[%clk 0:00:07]}  f2 {[%clk 0:01:07]} 43. Rgf7 {[%clk 0:00:02]}  Rxf7 {[%clk 0:00:59]} 44. Rxf7 {[%clk 0:00:01]}  Nxf7 {[%clk 0:01:00]} 45. Kxf2 {[%clk 0:00:02]}  Kg7 {[%clk 0:01:00]} 46. Ke3 {[%clk 0:00:02]}  Kf6 {[%clk 0:01:00]} 47. Kd4 {[%clk 0:00:02]}  Ke6 {[%clk 0:01:00]} 48. c4 {[%clk 0:00:02]}  Kd6 {[%clk 0:01:00]} 49. Ke3 {[%clk 0:00:02]}  Kc5 {[%clk 0:01:00]} 50. h4 {[%clk 0:00:02]}  Kxc4 {[%clk 0:01:00]} 51. Kf4 {[%clk 0:00:03]}  Kd5 {[%clk 0:00:59]} 52. g4 {[%clk 0:00:03]}  Ke6 {[%clk 0:01:00]} 53. g5 {[%clk 0:00:02]}  hxg5+ {[%clk 0:01:01]} 54. hxg5 {[%clk 0:00:02]}  Bg6 {[%clk 0:01:01]} 55. Kg4 {[%clk 0:00:02]}  Ke5 {[%clk 0:01:01]} 56. Kg3 {[%clk 0:00:03]}  Kf5 {[%clk 0:01:01]} 57. Kf3 {[%clk 0:00:04]}  Kxg5 {[%clk 0:01:01]} 58. Ke3 {[%clk 0:00:05]}  Kf5 {[%clk 0:01:00]} 59. Kd4 {[%clk 0:00:05]}  Kf4 {[%clk 0:00:59]} 60. Kd5 {[%clk 0:00:06]}  Bf5 {[%clk 0:00:59]} 61. Kd4 {[%clk 0:00:06]}  Be4 {[%clk 0:00:59]} 62. Kc5 {[%clk 0:00:07]}  Ke5 {[%clk 0:00:59]} 63. Kc4 {[%clk 0:00:07]}  Nd6+ {[%clk 0:00:58]} 64. Kc5 {[%clk 0:00:08]}  Bd5 {[%clk 0:00:57]} 65. Kb6 {[%clk 0:00:07]}  Ne4 {[%clk 0:00:57]} 66. Kc7 {[%clk 0:00:08]}  Ke6 {[%clk 0:00:56]} 67. Kb6 {[%clk 0:00:08]}  Kd7 {[%clk 0:00:56]} 68. Kb5 {[%clk 0:00:09]}  Kc7 {[%clk 0:00:57]} 69. Kb4 {[%clk 0:00:09]}  Kc6 {[%clk 0:00:57]} 70. Ka3 {[%clk 0:00:09]}  Kc5 {[%clk 0:00:57]} 71. Ka4 {[%clk 0:00:09]}  Nd6 {[%clk 0:00:49]} 72. Ka3 {[%clk 0:00:09]}  Kc4 {[%clk 0:00:47]} 73. Kb2 {[%clk 0:00:08]}  Kd3 {[%clk 0:00:46]} 74. Ka3 {[%clk 0:00:07]}  Kc3 {[%clk 0:00:42]} 75. Ka4 {[%clk 0:00:08]}  Kc4 {[%clk 0:00:38]} 76. Ka3 {[%clk 0:00:08]}  Nb5+ {[%clk 0:00:38]} 77. Kb2 {[%clk 0:00:08]}  Nd4 {[%clk 0:00:37]} 78. Ka3 {[%clk 0:00:08]}  Nb3 {[%clk 0:00:37]} 79. Kb2 {[%clk 0:00:07]}  Be4 {[%clk 0:00:35]} 80. Ka3 {[%clk 0:00:07]}  Kc3 {[%clk 0:00:35]} 81. Ka4 {[%clk 0:00:07]}  Bd3 {[%clk 0:00:36]} 82. Ka3 {[%clk 0:00:07]}  Bb1 {[%clk 0:00:37]} 83. Ka4 {[%clk 0:00:07]}  Nd4 {[%clk 0:00:37]} 84. Ka5 {[%clk 0:00:05]}  Kc4 {[%clk 0:00:38]} 85. Ka4 {[%clk 0:00:05]}  Nb5 {[%clk 0:00:39]} 86. Ka5 {[%clk 0:00:05]}  Kc5 {[%clk 0:00:39]} 87. Ka6 {[%clk 0:00:05]}  Be4 {[%clk 0:00:39]} 88. Ka5 {[%clk 0:00:04]}  Bc2 {[%clk 0:00:39]} 89. Ka6 {[%clk 0:00:05]}  Nd6 {[%clk 0:00:40]} 90. Ka7 {[%clk 0:00:04]}  Kc6 {[%clk 0:00:39]} 91. Ka6 {[%clk 0:00:03]}  Nb7 {[%clk 0:00:39]} 92. Ka7 {[%clk 0:00:04]}  Kc7 {[%clk 0:00:39]} 93. Ka6 {[%clk 0:00:04]}  Bd3+ {[%clk 0:00:39]} 94. Ka7 {[%clk 0:00:04]}  Bf1 {[%clk 0:00:40]} 95. Ka8 {[%clk 0:00:04]}  Nd6 {[%clk 0:00:40]} 96. Ka7 {[%clk 0:00:04]}  Nc8+ {[%clk 0:00:41]} 97. Ka8 {[%clk 0:00:03]}  Bg2# {[%clk 0:00:42]} 0-1


[Site "https://www.chess.com"]

[Event "Titled Tuesday Blitz May 9 Late 2023"]
[White "cristianserban1"]
[Black "Hambleton, Aman"]
[BlackFideId "2606577"]
[WhiteElo "2487"]
[BlackElo "2511"]
[Result "1-0"]
[Round "11"]
[TimeControl "180+2"]
[Date "2023.05.09"]
[WhiteClock "0:00:11"]
[BlackClock "0:00:06"]

1. d4 {[%clk 0:02:55]}  e5 {[%clk 0:02:59]} 2. dxe5 {[%clk 0:02:55]}  Nc6 {[%clk 0:03:00]} 3. Nf3 {[%clk 0:02:54]}  Qe7 {[%clk 0:03:00]} 4. Nc3 {[%clk 0:02:54]}  Nxe5 {[%clk 0:03:00]} 5. Nd5 {[%clk 0:02:55]}  Nxf3+ {[%clk 0:03:01]} 6. gxf3 {[%clk 0:02:55]}  Qd8 {[%clk 0:03:02]} 7. Bf4 {[%clk 0:02:53]}  d6 {[%clk 0:03:02]} 8. e4 {[%clk 0:02:46]}  Nf6 {[%clk 0:03:03]} 9. Bg5 {[%clk 0:02:40]}  Be7 {[%clk 0:03:02]} 10. Nxe7 {[%clk 0:02:40]}  Qxe7 {[%clk 0:03:03]} 11. Qd4 {[%clk 0:02:39]}  Qe5 {[%clk 0:03:01]} 12. Qxe5+ {[%clk 0:02:38]}  dxe5 {[%clk 0:03:02]} 13. Bc4 {[%clk 0:02:26]}  h6 {[%clk 0:02:37]} 14. Bxf6 {[%clk 0:02:25]}  gxf6 {[%clk 0:02:38]} 15. Rg1 {[%clk 0:02:26]}  Ke7 {[%clk 0:02:04]} 16. Ke2 {[%clk 0:01:59]}  Bd7 {[%clk 0:01:39]} 17. Rg7 {[%clk 0:01:53]}  Be8 {[%clk 0:01:38]} 18. Rd1 {[%clk 0:01:51]}  Kf8 {[%clk 0:01:34]} 19. Rgg1 {[%clk 0:01:49]}  Ke7 {[%clk 0:01:35]} 20. Rd2 {[%clk 0:01:39]}  Rd8 {[%clk 0:01:31]} 21. Rxd8 {[%clk 0:01:36]}  Kxd8 {[%clk 0:01:32]} 22. Ke3 {[%clk 0:01:30]}  Ke7 {[%clk 0:01:28]} 23. f4 {[%clk 0:01:29]}  a5 {[%clk 0:01:27]} 24. a3 {[%clk 0:01:10]}  Kf8 {[%clk 0:01:19]} 25. fxe5 {[%clk 0:01:04]}  fxe5 {[%clk 0:01:20]} 26. f4 {[%clk 0:01:05]}  exf4+ {[%clk 0:00:54]} 27. Kxf4 {[%clk 0:01:06]}  Ke7 {[%clk 0:00:55]} 28. e5 {[%clk 0:00:59]}  b6 {[%clk 0:00:39]} 29. Rg7 {[%clk 0:00:58]}  Kf8 {[%clk 0:00:39]} 30. Rg3 {[%clk 0:00:59]}  Rg8 {[%clk 0:00:27]} 31. Rxg8+ {[%clk 0:00:37]}  Kxg8 {[%clk 0:00:28]} 32. e6 {[%clk 0:00:38]}  fxe6 {[%clk 0:00:11]} 33. Bxe6+ {[%clk 0:00:38]}  Kf8 {[%clk 0:00:10]} 34. Ke5 {[%clk 0:00:38]}  Ke7 {[%clk 0:00:10]} 35. h4 {[%clk 0:00:38]}  Bg6 {[%clk 0:00:09]} 36. c3 {[%clk 0:00:38]}  Bd3 {[%clk 0:00:09]} 37. b4 {[%clk 0:00:37]}  axb4 {[%clk 0:00:08]} 38. axb4 {[%clk 0:00:38]}  Be2 {[%clk 0:00:07]} 39. Bb3 {[%clk 0:00:35]}  Bg4 {[%clk 0:00:07]} 40. Bd5 {[%clk 0:00:35]}  Bh3 {[%clk 0:00:06]} 41. Bc6 {[%clk 0:00:35]}  Be6 {[%clk 0:00:05]} 42. Be4 {[%clk 0:00:35]}  Kf7 {[%clk 0:00:04]} 43. Bd5 {[%clk 0:00:35]}  Bxd5 {[%clk 0:00:03]} 44. Kxd5 {[%clk 0:00:36]}  Ke7 {[%clk 0:00:03]} 45. Kc6 {[%clk 0:00:34]}  Kd8 {[%clk 0:00:03]} 46. c4 {[%clk 0:00:20]}  Kc8 {[%clk 0:00:03]} 47. c5 {[%clk 0:00:16]}  bxc5 {[%clk 0:00:04]} 48. bxc5 {[%clk 0:00:17]}  h5 {[%clk 0:00:02]} 49. Kd5 {[%clk 0:00:15]}  Kd7 {[%clk 0:00:02]} 50. c6+ {[%clk 0:00:14]}  Ke7 {[%clk 0:00:02]} 51. Ke5 {[%clk 0:00:14]}  Kf7 {[%clk 0:00:02]} 52. Kf5 {[%clk 0:00:14]}  Ke7 {[%clk 0:00:02]} 53. Kg5 {[%clk 0:00:11]}  Ke6 {[%clk 0:00:01]} 54. Kg6 {[%clk 0:00:07]}  Ke7 {[%clk 0:00:01]} 55. Kg5 {[%clk 0:00:07]}  Ke6 {[%clk 0:00:01]} 56. Kxh5 {[%clk 0:00:07]}  Kf5 {[%clk 0:00:02]} 57. Kh6 {[%clk 0:00:08]}  Kf6 {[%clk 0:00:02]} 58. Kh7 {[%clk 0:00:08]}  Kf7 {[%clk 0:00:02]} 59. h5 {[%clk 0:00:08]}  Kf6 {[%clk 0:00:02]} 60. Kg8 {[%clk 0:00:04]}  Kg5 {[%clk 0:00:01]} 61. Kf7 {[%clk 0:00:04]}  Kxh5 {[%clk 0:00:01]} 62. Ke7 {[%clk 0:00:05]}  Kg6 {[%clk 0:00:01]} 63. Kd7 {[%clk 0:00:06]}  Kf7 {[%clk 0:00:02]} 64. Kxc7 {[%clk 0:00:07]}  Ke7 {[%clk 0:00:02]} 65. Kb7 {[%clk 0:00:07]}  Kd8 {[%clk 0:00:03]} 66. c7+ {[%clk 0:00:08]}  Kd7 {[%clk 0:00:03]} 67. c8=Q+ {[%clk 0:00:09]}  Kd6 {[%clk 0:00:04]} 68. Qc6+ {[%clk 0:00:09]}  Ke5 {[%clk 0:00:04]} 69. Kc7 {[%clk 0:00:10]}  Kf5 {[%clk 0:00:04]} 70. Qd6 {[%clk 0:00:10]}  Kg5 {[%clk 0:00:04]} 71. Qe6 {[%clk 0:00:10]}  Kf4 {[%clk 0:00:05]} 72. Kd6 {[%clk 0:00:10]}  Kf3 {[%clk 0:00:05]} 73. Qe5 {[%clk 0:00:11]}  Kg4 {[%clk 0:00:05]} 74. Qf6 {[%clk 0:00:11]}  Kg3 {[%clk 0:00:06]} 75. Qf5 {[%clk 0:00:11]}  Kg2 {[%clk 0:00:06]} 76. Qf4 {[%clk 0:00:11]}  Kg1 {[%clk 0:00:06]} 77. Qf3 {[%clk 0:00:11]}  Kh2 {[%clk 0:00:06]} 78. Qg4 {[%clk 0:00:12]}  Kh1 {[%clk 0:00:06]} 79. Ke5 {[%clk 0:00:13]}  Kh2 {[%clk 0:00:07]} 80. Kf4 {[%clk 0:00:14]}  Kh1 {[%clk 0:00:07]} 81. Kf3 {[%clk 0:00:14]}  Kh2 {[%clk 0:00:08]} 82. Qh4+ {[%clk 0:00:09]}  Kg1 {[%clk 0:00:07]} 83. Qg3+ {[%clk 0:00:10]}  Kh1 {[%clk 0:00:06]} 84. Qg2# {[%clk 0:00:11]} 1-0


[Site "https://www.chess.com"]